[Event "51st Rilton Cup 2023-24"]
[Site "Stockholm"]
[Date "2023.12.29"]
[Round "3.6"]
[White "Makhija, Aashna"]
[Black "Chasin, Nico"]
[Result "0-1"]
[ECO "C78"]
[WhiteElo "2093"]
[BlackElo "2444"]
[Annotator "ChessBase"]
[PlyCount "110"]
[EventDate "2023.12.27"]
[EventType "swiss"]
[EventCountry "SWE"]
[SourceTitle "playchess.com"]
[Source "ChessBase"]
[SourceQuality "1"]
[TimeControl "40/5400+30:1800+30"]

1. e4 {[%emt 0:00:07]} e5 {[%emt 0:10:31]} 2. Nf3 {[%emt 0:00:13]} Nc6 {[%emt 0:00:06]} 3. Bb5 {[%emt 0:00:07]} a6 {[%emt 0:00:35]} 4. Ba4 {[%emt 0:00:06]} Nf6 {[%emt 0:00:11]} 5. O-O {[%emt 0:00:36]} Bc5 {[%emt 0:00:44]} 6. c3 {[%emt 0:07:14]} b5 {[%emt 0:01:42]} 7. Bb3 {[%emt 0:16:59]} d6 {[%emt 0:00:30]} 8. d4 {[%emt 0:04:04]} Bb6 {[%emt 0:00:13]} 9. dxe5 {[%emt 0:21:43]} Nxe5 {[%emt 0:00:15]} 10. Nxe5 {[%emt 0:01:10]} dxe5 {[%emt 0:00:07]} 11. Qxd8+ {[%emt 0:01:58]} Kxd8 {[%emt 0:00:05]} 12. Bg5 {[%emt 0:10:08]} Ke8 {[%emt 0:02:39]} 13. Nd2 {[%emt 0:03:29]} Nd7 {[%emt 0:02:49]} 14. Bd5 {[%emt 0:02:31]} Rb8 {[%emt 0:01:43]} 15. a4 {[%emt 0:02:13]} f6 {[%emt 0:02:06]} 16. Bh4 {[%emt 0:08:55]} h5 {[%emt 0:00:01]} 17. h3 {[%emt 0:00:34]} Nf8 {[%emt 0:07:06]} 18. axb5 {[%emt 0:03:50]} axb5 {[%emt 0:00:04]} 19. Bc6+ {[%emt 0:01:08]} Bd7 {[%emt 0:00:11]} 20. Bxd7+ {[%emt 0:00:45]} Kxd7 {[%emt 0:00:12]} 21. Kh1 {[%emt 0:03:03]} Ne6 {[%emt 0:09:04]} 22. f3 {[%emt 0:01:21]} Ra8 {[%emt 0:00:50]} 23. Rad1 {[%emt 0:02:39]} Kc6 {[%emt 0:00:39]} 24. b4 {[%emt 0:05:51]} Rhd8 {[%emt 0:01:06]} 25. Nb3 {[%emt 0:01:36]} Rxd1 {[%emt 0:00:46]} 26. Rxd1 {[%emt 0:00:04]} Ra2 {[%emt 0:00:30]} 27. Rd2 {[%emt 0:00:57]} Ra3 {[%emt 0:00:08]} 28. Rb2 {[%emt 0:00:22]} Nf4 {[%emt 0:00:02]} 29. Bg3 {[%emt 0:00:42]} Nd3 {[%emt 0:00:25]} 30. Rb1 {[%emt 0:00:30]} Kb7 {[%emt 0:05:00]} 31. h4 {[%emt 0:00:30]} Kc8 {[%emt 0:00:06]} 32. Kh2 {[%emt 0:00:31]} Be3 {[%emt 0:00:43]} 33. Kh1 {[%emt 0:00:30]} g6 {[%emt 0:00:11]} 34. Kh2 {[%emt 0:00:28]} f5 {[%emt 0:00:06]} 35. exf5 {[%emt 0:00:26]} gxf5 {[%emt 0:00:01]} 36. Be1 {[%emt 0:00:39]} Rxb3 {[%emt 0:00:27]} 37. Rxb3 {[%emt 0:00:18]} Nxe1 {[%emt 0:00:02]} 38. c4 {[%emt 0:00:39]} Bf4+ {[%emt 0:02:04]} 39. Kg1 {[%emt 0:00:32]} bxc4 {[%emt 0:00:19]} 40. Rc3 {[%emt 0:00:12]} Nd3 {[%emt 0:00:10]} 41. Rxc4 {[%emt 0:03:19]} Bg3 {[%emt 0:00:31]} 42. b5 {[%emt 0:14:35]} Kb7 {[%emt 0:00:11]} 43. Kf1 {[%emt 0:08:32]} Nf4 {[%emt 0:00:42]} 44. Rc5 {[%emt 0:00:57]} Ne6 {[%emt 0:03:06]} 45. Rc6 {[%emt 0:04:39]} Nd4 {[%emt 0:00:07]} 46. Rg6 {[%emt 0:00:52]} Bf4 {[%emt 0:02:13]} 47. g3 {[%emt 0:00:51]} Bd2 {[%emt 0:00:08]} 48. Rg7 {[%emt 0:00:30]} Nxf3 {[%emt 0:05:02]} 49. Ke2 {[%emt 0:00:18]} e4 {[%emt 0:00:08]} 50. Rh7 {[%emt 0:00:38]} Be1 {[%emt 0:00:02]} 51. Rg7 {[%emt 0:00:38]} Bb4 {[%emt 0:00:33]} 52. Rf7 {[%emt 0:00:29]} Bc5 {[%emt 0:00:55]} 53. Kf1 {[%emt 0:00:31]} e3 {[%emt 0:00:08]} 54. Ke2 {[%emt 0:00:26]} Ng1+ {[%emt 0:00:02]} 55. Ke1 {[%emt 0:00:30]} e2 {[%emt 0:00:35]} 0-1

[Event "51st Rilton Cup 2023-24"]
[Site "Stockholm"]
[Date "2023.12.29"]
[Round "3.7"]
[White "Sokolovsky, Yahli"]
[Black "Koykka, Pekka"]
[Result "1-0"]
[ECO "C63"]
[WhiteElo "2443"]
[BlackElo "2351"]
[Annotator "ChessBase"]
[PlyCount "77"]
[EventDate "2023.12.27"]
[EventType "swiss"]
[EventCountry "SWE"]
[SourceTitle "playchess.com"]
[Source "ChessBase"]
[SourceQuality "1"]
[TimeControl "40/5400+30:1800+30"]

1. e4 {[%emt 0:00:04]} e5 {[%emt 0:00:18]} 2. Nf3 {[%emt 0:00:05]} Nc6 {[%emt 0:00:08]} 3. Bb5 {[%emt 0:00:03]} f5 {[%emt 0:00:28]} 4. d3 {[%emt 0:00:15]} fxe4 {[%emt 0:00:16]} 5. dxe4 {[%emt 0:00:04]} Nf6 {[%emt 0:00:12]} 6. O-O {[%emt 0:00:26]} d6 {[%emt 0:00:16]} 7. Bc4 {[%emt 0:01:06]} Bg4 {[%emt 0:00:36]} 8. h3 {[%emt 0:00:11]} Bh5 {[%emt 0:02:05]} 9. Nc3 {[%emt 0:00:07]} Qd7 {[%emt 0:01:03]} 10. Nd5 {[%emt 0:01:30]} O-O-O {[%emt 0:15:57]} 11. Qd3 {[%emt 0:00:14]} Kb8 {[%emt 0:10:12]} 12. a4 {[%emt 0:07:04]} Ne7 {[%emt 0:14:50]} 13. Nc3 {[%emt 0:27:34]} h6 {[%emt 0:03:34]} 14. Ra3 {[%emt 0:11:18]} g5 {[%emt 0:05:55]} 15. Rb3 {[%emt 0:00:50]} g4 {[%emt 0:06:37]} 16. hxg4 {[%emt 0:00:33]} Bxg4 {[%emt 0:01:04]} 17. Rd1 {[%emt 0:13:51]} Ka8 {[%emt 0:08:47]} 18. Qe3 {[%emt 0:01:50]} Ng6 {[%emt 0:06:48]} 19. Nb5 {[%emt 0:02:39]} c5 {[%emt 0:03:56]} 20. Qe1 {[%emt 0:03:14]} Rh7 {[%emt 0:06:36]} 21. Bd2 {[%emt 0:07:52]} Qc6 {[%emt 0:05:10]} 22. Ba5 {[%emt 0:07:21]} b6 {[%emt 0:04:49]} 23. Nxa7 {[%emt 0:00:29]} Kxa7 {[%emt 0:01:31]} 24. Bxb6+ {[%emt 0:04:49]} Qxb6 {[%emt 0:00:08]} 25. Rxb6 {[%emt 0:00:03]} Kxb6 {[%emt 0:00:04]} 26. b4 {[%emt 0:00:49]} cxb4 {[%emt 0:00:16]} 27. Qxb4+ {[%emt 0:00:12]} Kc7 {[%emt 0:00:06]} 28. Qa5+ {[%emt 0:04:38]} Kd7 {[%emt 0:00:21]} 29. Bb5+ {[%emt 0:00:09]} Ke7 {[%emt 0:00:21]} 30. Qc7+ {[%emt 0:00:03]} Bd7 {[%emt 0:01:56]} 31. Rxd6 {[%emt 0:03:55]} Rf7 {[%emt 0:00:18]} 32. a5 {[%emt 0:01:49]} Ke8 {[%emt 0:00:51]} 33. Rd1 {[%emt 0:00:41]} Be7 {[%emt 0:00:57]} 34. Nxe5 {[%emt 0:01:00]} Nxe5 {[%emt 0:00:24]} 35. Qxe5 {[%emt 0:00:02]} Bxb5 {[%emt 0:00:32]} 36. Rxd8+ {[%emt 0:00:50]} Kxd8 {[%emt 0:00:01]} 37. Qb8+ {[%emt 0:00:06]} Kd7 {[%emt 0:00:14]} 38. Qxb5+ {[%emt 0:00:02]} Kd8 {[%emt 0:01:01]} 39. e5 {[%emt 0:00:08]} 1-0

[Event "51st Rilton Cup 2023-24"]
[Site "Stockholm"]
[Date "2023.12.29"]
[Round "3.8"]
[White "Bronstein, Or"]
[Black "Elmi, Saad Abobaker"]
[Result "1/2-1/2"]
[ECO "D27"]
[WhiteElo "2428"]
[BlackElo "2333"]
[Annotator "ChessBase"]
[PlyCount "147"]
[EventDate "2023.12.27"]
[EventType "swiss"]
[EventCountry "SWE"]
[SourceTitle "playchess.com"]
[Source "ChessBase"]
[SourceQuality "1"]
[TimeControl "40/5400+30:1800+30"]

1. d4 {[%emt 0:04:17]} d5 {[%emt 0:01:24]} 2. c4 {[%emt 0:00:21]} dxc4 {[%emt 0:01:08]} 3. Nf3 {[%emt 0:00:14]} Nf6 {[%emt 0:00:47]} 4. e3 {[%emt 0:00:09]} e6 {[%emt 0:00:31]} 5. Bxc4 {[%emt 0:00:07]} c5 {[%emt 0:00:21]} 6. O-O {[%emt 0:00:03]} a6 {[%emt 0:01:00]} 7. b3 {[%emt 0:03:34]} b6 {[%emt 0:08:34]} 8. Ba3 {[%emt 0:03:44]} Nbd7 {[%emt 0:15:30]} 9. d5 {[%emt 0:06:35]} exd5 {[%emt 0:00:26]} 10. Bxd5 {[%emt 0:00:02]} Rb8 {[%emt 0:01:23]} 11. e4 {[%emt 0:13:26]} Be7 {[%emt 0:01:17]} 12. Nc3 {[%emt 0:01:55]} O-O {[%emt 0:00:37]} 13. Qe2 {[%emt 0:14:36]} b5 {[%emt 0:04:18]} 14. Bb2 {[%emt 0:00:33]} Nb6 {[%emt 0:01:14]} 15. Rad1 {[%emt 0:12:45]} Qc7 {[%emt 0:01:23]} 16. Qe3 {[%emt 0:01:15]} Bg4 {[%emt 0:04:49]} 17. h3 {[%emt 0:00:48]} Bh5 {[%emt 0:00:33]} 18. Ne2 {[%emt 0:11:38]} Nfxd5 {[%emt 0:03:16]} 19. exd5 {[%emt 0:00:02]} Bd6 {[%emt 0:00:26]} 20. Ng3 {[%emt 0:03:31]} Bg6 {[%emt 0:01:58]} 21. Rfe1 {[%emt 0:08:11]} Rbd8 {[%emt 0:11:55]} 22. Ne4 {[%emt 0:11:08]} f6 {[%emt 0:03:12]} 23. Nh4 {[%emt 0:02:00]} b4 {[%emt 0:03:48]} 24. Qf3 {[%emt 0:00:40]} Qf7 {[%emt 0:03:49]} 25. Nf5 {[%emt 0:00:36]} Be5 {[%emt 0:03:28]} 26. Bxe5 {[%emt 0:00:33]} fxe5 {[%emt 0:00:05]} 27. Nh4 {[%emt 0:00:29]} c4 {[%emt 0:10:19]} 28. Qxf7+ {[%emt 0:00:39]} Bxf7 {[%emt 0:00:16]} 29. bxc4 {[%emt 0:00:26]} Nxc4 {[%emt 0:00:07]} 30. Nf5 {[%emt 0:00:23]} h6 {[%emt 0:07:44]} 31. g4 {[%emt 0:00:34]} a5 {[%emt 0:01:26]} 32. Re2 {[%emt 0:00:31]} Rfe8 {[%emt 0:00:41]} 33. d6 {[%emt 0:00:31]} Be6 {[%emt 0:00:15]} 34. Rc2 {[%emt 0:00:36]} a4 {[%emt 0:07:01]} 35. d7 {[%emt 0:00:02]} Rf8 {[%emt 0:01:15]} 36. Ne7+ {[%emt 0:00:01]} Kh7 {[%emt 0:00:46]} 37. Nc5 {[%emt 0:01:14]} b3 {[%emt 0:00:39]} 38. axb3 {[%emt 0:00:11]} axb3 {[%emt 0:00:06]} 39. Rc3 {[%emt 0:00:24]} Bf7 {[%emt 0:00:36]} 40. Nxb3 {[%emt 0:01:11]} Nb2 {[%emt 0:01:05]} 41. Rd6 {[%emt 0:01:38]} Nc4 {[%emt 0:01:05]} 42. Rxc4 {[%emt 0:16:34]} Bxc4 {[%emt 0:00:03]} 43. Nc5 {[%emt 0:00:09]} Rb8 {[%emt 0:04:48]} 44. Rd2 {[%emt 0:05:18]} Bb5 {[%emt 0:06:56]} 45. Rb2 {[%emt 0:07:09]} Rfd8 {[%emt 0:03:19]} 46. Rxb5 {[%emt 0:00:25]} Rxb5 {[%emt 0:00:07]} 47. Nc6 {[%emt 0:00:05]} Ra8 {[%emt 0:03:03]} 48. Ne6 {[%emt 0:00:55]} e4 {[%emt 0:01:39]} 49. d8=Q {[%emt 0:00:37]} Rxd8 {[%emt 0:00:05]} 50. Ncxd8 {[%emt 0:00:13]} Rb3 {[%emt 0:00:43]} 51. h4 {[%emt 0:02:04]} Rb1+ {[%emt 0:03:38]} 52. Kg2 {[%emt 0:00:02]} Rb2 {[%emt 0:00:11]} 53. Kf1 {[%emt 0:00:50]} Rb1+ {[%emt 0:01:21]} 54. Ke2 {[%emt 0:00:01]} Rg1 {[%emt 0:00:51]} 55. f3 {[%emt 0:01:31]} Rg3 {[%emt 0:00:12]} 56. fxe4 {[%emt 0:00:14]} Rxg4 {[%emt 0:00:08]} 57. Kf3 {[%emt 0:00:32]} Rxh4 {[%emt 0:00:08]} 58. Nf8+ {[%emt 0:00:35]} Kg8 {[%emt 0:00:09]} 59. Ng6 {[%emt 0:00:08]} Rh5 {[%emt 0:00:53]} 60. Kf4 {[%emt 0:00:51]} Kh7 {[%emt 0:00:59]} 61. Nf8+ {[%emt 0:00:27]} Kg8 {[%emt 0:00:04]} 62. Ng6 {[%emt 0:00:07]} Kh7 {[%emt 0:00:30]} 63. Nf8+ {[%emt 0:00:26]} Kg8 {[%emt 0:00:04]} 64. Nd7 {[%emt 0:00:58]} Rh1 {[%emt 0:01:24]} 65. e5 {[%emt 0:00:11]} Rf1+ {[%emt 0:03:32]} 66. Kg4 {[%emt 0:00:01]} g6 {[%emt 0:01:10]} 67. e6 {[%emt 0:01:20]} Re1 {[%emt 0:00:10]} 68. Kf4 {[%emt 0:00:29]} Kg7 {[%emt 0:00:10]} 69. Kf3 {[%emt 0:00:35]} g5 {[%emt 0:00:44]} 70. Kf2 {[%emt 0:00:10]} Re4 {[%emt 0:00:07]} 71. Kf3 {[%emt 0:00:22]} Re1 {[%emt 0:00:06]} 72. Kf2 {[%emt 0:00:16]} Re4 {[%emt 0:00:06]} 73. Kf3 {[%emt 0:00:03]} Re1 {[%emt 0:00:09]} 74. Kf2 {[%emt 0:00:04]} 1/2-1/2

[Event "51st Rilton Cup 2023-24"]
[Site "Stockholm"]
[Date "2023.12.29"]
[Round "3.9"]
[White "Blomqvist, Erik"]
[Black "Krishnan, Ritvik"]
[Result "1-0"]
[ECO "C78"]
[WhiteElo "2521"]
[BlackElo "2346"]
[Annotator "ChessBase"]
[PlyCount "77"]
[EventDate "2023.12.27"]
[EventType "swiss"]
[EventCountry "SWE"]
[SourceTitle "playchess.com"]
[Source "ChessBase"]
[SourceQuality "1"]
[TimeControl "40/5400+30:1800+30"]

1. e4 {[%emt 0:03:04]} e5 {[%emt 0:00:04]} 2. Nf3 {[%emt 0:00:09]} Nc6 {[%emt 0:00:04]} 3. Bb5 {[%emt 0:00:08]} a6 {[%emt 0:00:09]} 4. Ba4 {[%emt 0:00:05]} Nf6 {[%emt 0:00:07]} 5. O-O {[%emt 0:00:08]} b5 {[%emt 0:00:07]} 6. Bb3 {[%emt 0:00:12]} Bc5 {[%emt 0:00:11]} 7. c3 {[%emt 0:02:05]} d6 {[%emt 0:00:09]} 8. d4 {[%emt 0:00:12]} Bb6 {[%emt 0:00:10]} 9. Be3 {[%emt 0:00:19]} Bb7 {[%emt 0:02:44]} 10. Nbd2 {[%emt 0:04:34]} O-O {[%emt 0:01:08]} 11. h3 {[%emt 0:03:24]} h6 {[%emt 0:01:56]} 12. Re1 {[%emt 0:04:41]} Re8 {[%emt 0:03:47]} 13. d5 {[%emt 0:02:51]} Ne7 {[%emt 0:00:39]} 14. Bxb6 {[%emt 0:00:11]} cxb6 {[%emt 0:00:03]} 15. a4 {[%emt 0:02:06]} bxa4 {[%emt 0:02:32]} 16. Bxa4 {[%emt 0:01:23]} b5 {[%emt 0:01:53]} 17. Bc2 {[%emt 0:00:15]} Ng6 {[%emt 0:06:40]} 18. Bd3 {[%emt 0:01:12]} Qb6 {[%emt 0:05:49]} 19. b4 {[%emt 0:06:42]} a5 {[%emt 0:12:23]} 20. bxa5 {[%emt 0:08:14]} Rxa5 {[%emt 0:01:35]} 21. Rb1 {[%emt 0:00:17]} Qc7 {[%emt 0:10:35]} 22. Bxb5 {[%emt 0:01:56]} Rc8 {[%emt 0:01:54]} 23. c4 {[%emt 0:06:36]} Ba6 {[%emt 0:05:24]} 24. Qe2 {[%emt 0:08:29]} Bxb5 {[%emt 0:03:50]} 25. cxb5 {[%emt 0:00:47]} Nd7 {[%emt 0:01:15]} 26. Qf1 {[%emt 0:11:16]} Ra2 {[%emt 0:12:18]} 27. Rec1 {[%emt 0:06:40]} Rc2 {[%emt 0:00:13]} 28. Rxc2 {[%emt 0:00:23]} Qxc2 {[%emt 0:00:02]} 29. b6 {[%emt 0:01:15]} Rb8 {[%emt 0:07:54]} 30. Qc4 {[%emt 0:01:41]} Rc8 {[%emt 0:02:46]} 31. Qa6 {[%emt 0:04:31]} Rb8 {[%emt 0:05:53]} 32. b7 {[%emt 0:02:36]} Nh4 {[%emt 0:02:57]} 33. Nxh4 {[%emt 0:01:40]} Qxd2 {[%emt 0:00:02]} 34. Nf5 {[%emt 0:03:36]} Qc2 {[%emt 0:01:18]} 35. Qb5 {[%emt 0:00:48]} Nc5 {[%emt 0:00:55]} 36. Nxd6 {[%emt 0:00:21]} Nxe4 {[%emt 0:02:37]} 37. Nxe4 {[%emt 0:00:14]} Qxe4 {[%emt 0:00:04]} 38. Rc1 {[%emt 0:01:01]} Kh7 {[%emt 0:03:08]} 39. Qd7 {[%emt 0:05:46]} 1-0

[Event "51st Rilton Cup 2023-24"]
[Site "Stockholm"]
[Date "2023.12.29"]
[Round "3.10"]
[White "Eggleston, David J"]
[Black "Hillarp Persson, Tiger"]
[Result "1/2-1/2"]
[ECO "B52"]
[WhiteElo "2353"]
[BlackElo "2493"]
[Annotator "ChessBase"]
[PlyCount "94"]
[EventDate "2023.12.27"]
[EventType "swiss"]
[EventCountry "SWE"]
[SourceTitle "playchess.com"]
[Source "ChessBase"]
[SourceQuality "1"]
[TimeControl "40/5400+30:1800+30"]

1. e4 {[%emt 0:00:04]} c5 {[%emt 0:00:43]} 2. Nf3 {[%emt 0:00:06]} d6 {[%emt 0:00:06]} 3. Bb5+ {[%emt 0:00:08]} Bd7 {[%emt 0:00:05]} 4. c4 {[%emt 0:00:49]} Nc6 {[%emt 0:01:21]} 5. Nc3 {[%emt 0:01:58]} Nf6 {[%emt 0:03:45]} 6. O-O {[%emt 0:03:56]} e6 {[%emt 0:09:44]} 7. Re1 {[%emt 0:02:33]} Ne5 {[%emt 0:04:11]} 8. d3 {[%emt 0:02:47]} Be7 {[%emt 0:20:50]} 9. Bf4 {[%emt 0:02:17]} Ng6 {[%emt 0:13:33]} 10. Bg3 {[%emt 0:04:43]} Bxb5 {[%emt 0:12:12]} 11. Nxb5 {[%emt 0:03:16]} Nh5 {[%emt 0:02:32]} 12. d4 {[%emt 0:00:49]} Nxg3 {[%emt 0:01:39]} 13. hxg3 {[%emt 0:00:13]} a6 {[%emt 0:00:19]} 14. Nc3 {[%emt 0:00:29]} cxd4 {[%emt 0:00:38]} 15. Qxd4 {[%emt 0:05:55]} O-O {[%emt 0:02:53]} 16. Rad1 {[%emt 0:03:07]} Rc8 {[%emt 0:01:41]} 17. Re3 {[%emt 0:06:37]} Qa5 {[%emt 0:03:24]} 18. a3 {[%emt 0:08:47]} Qc7 {[%emt 0:07:01]} 19. b3 {[%emt 0:08:49]} d5 {[%emt 0:01:23]} 20. exd5 {[%emt 0:00:31]} Bc5 {[%emt 0:00:07]} 21. Qe4 {[%emt 0:00:25]} Bxe3 {[%emt 0:00:09]} 22. Qxe3 {[%emt 0:00:10]} exd5 {[%emt 0:00:48]} 23. Nxd5 {[%emt 0:00:21]} Qc5 {[%emt 0:01:45]} 24. Nd4 {[%emt 0:04:02]} Rfe8 {[%emt 0:03:05]} 25. Qc1 {[%emt 0:17:39]} Re5 {[%emt 0:00:32]} 26. Ne3 {[%emt 0:04:22]} Rce8 {[%emt 0:02:06]} 27. b4 {[%emt 0:00:28]} Qc8 {[%emt 0:00:26]} 28. c5 {[%emt 0:00:30]} Rd8 {[%emt 0:03:13]} 29. Qc2 {[%emt 0:04:06]} h5 {[%emt 0:03:07]} 30. Nc4 {[%emt 0:02:25]} Re7 {[%emt 0:00:12]} 31. Nd6 {[%emt 0:01:04]} Qg4 {[%emt 0:00:22]} 32. N4f5 {[%emt 0:07:26]} Re6 {[%emt 0:00:56]} 33. Ne3 {[%emt 0:00:47]} Qg5 {[%emt 0:00:58]} 34. Nxb7 {[%emt 0:00:14]} Rxd1+ {[%emt 0:00:31]} 35. Qxd1 {[%emt 0:00:05]} Rxe3 {[%emt 0:00:27]} 36. fxe3 {[%emt 0:00:18]} Qxe3+ {[%emt 0:00:06]} 37. Kh2 {[%emt 0:01:36]} Ne5 {[%emt 0:00:15]} 38. Qxh5 {[%emt 0:00:34]} g6 {[%emt 0:01:28]} 39. Qd1 {[%emt 0:03:30]} Qh6+ {[%emt 0:00:23]} 40. Kg1 {[%emt 0:00:04]} Qe3+ {[%emt 0:00:06]} 41. Kh2 {[%emt 0:32:08]} Qh6+ {[%emt 0:22:30]} 42. Kg1 {[%emt 0:00:00]} Qe3+ {[%emt 0:00:04]} 43. Kh2 {[%emt 0:00:00]} Kh7 {[%emt 0:00:38]} 44. c6 {[%emt 0:00:00]} Qh6+ {[%emt 0:06:56]} 45. Kg1 {[%emt 0:00:00]} Qe3+ {[%emt 0:00:08]} 46. Kh2 {[%emt 0:00:00]} Qh6+ {[%emt 0:03:30]} 47. Kg1 {[%emt 0:00:00]} Qe3+ {[%emt 0:00:08]} 1/2-1/2

[Event "51st Rilton Cup 2023-24"]
[Site "Stockholm"]
[Date "2023.12.29"]
[Round "3.11"]
[White "Bailet, Pierre"]
[Black "Hedman, Erik"]
[Result "1/2-1/2"]
[ECO "B70"]
[WhiteElo "2492"]
[BlackElo "2323"]
[Annotator "ChessBase"]
[PlyCount "74"]
[EventDate "2023.12.27"]
[EventType "swiss"]
[EventCountry "SWE"]
[SourceTitle "playchess.com"]
[Source "ChessBase"]
[SourceQuality "1"]
[TimeControl "40/5400+30:1800+30"]

1. e4 {[%emt 0:00:22]} c5 {[%emt 0:00:03]} 2. Nf3 {[%emt 0:00:20]} d6 {[%emt 0:00:04]} 3. d4 {[%emt 0:00:33]} cxd4 {[%emt 0:00:06]} 4. Nxd4 {[%emt 0:00:06]} Nf6 {[%emt 0:00:05]} 5. Nc3 {[%emt 0:00:20]} g6 {[%emt 0:00:04]} 6. Be2 {[%emt 0:03:00]} Bg7 {[%emt 0:00:56]} 7. O-O {[%emt 0:00:09]} O-O {[%emt 0:00:03]} 8. Re1 {[%emt 0:00:17]} Nc6 {[%emt 0:02:24]} 9. Nb3 {[%emt 0:00:22]} a5 {[%emt 0:01:21]} 10. a4 {[%emt 0:02:24]} Be6 {[%emt 0:00:05]} 11. Bg5 {[%emt 0:05:44]} Nd7 {[%emt 0:02:28]} 12. Bb5 {[%emt 0:03:25]} Re8 {[%emt 0:02:39]} 13. Qd2 {[%emt 0:10:59]} Bxb3 {[%emt 0:00:39]} 14. cxb3 {[%emt 0:00:17]} Nd4 {[%emt 0:02:35]} 15. Rad1 {[%emt 0:03:34]} Nxb5 {[%emt 0:02:58]} 16. Nxb5 {[%emt 0:00:17]} Nc5 {[%emt 0:08:17]} 17. Qc2 {[%emt 0:09:30]} Qc8 {[%emt 0:07:52]} 18. Be3 {[%emt 0:02:35]} b6 {[%emt 0:05:42]} 19. Bd4 {[%emt 0:11:21]} Ne6 {[%emt 0:03:24]} 20. Bc3 {[%emt 0:02:22]} Nf4 {[%emt 0:08:43]} 21. f3 {[%emt 0:10:24]} Qc5+ {[%emt 0:01:45]} 22. Qf2 {[%emt 0:07:22]} Qxf2+ {[%emt 0:02:43]} 23. Kxf2 {[%emt 0:00:07]} Rec8 {[%emt 0:00:09]} 24. Rd2 {[%emt 0:10:35]} Ne6 {[%emt 0:02:52]} 25. e5 {[%emt 0:00:20]} dxe5 {[%emt 0:07:32]} 26. Bxe5 {[%emt 0:00:07]} Rd8 {[%emt 0:04:55]} 27. Rxd8+ {[%emt 0:03:25]} Rxd8 {[%emt 0:01:15]} 28. Bc3 {[%emt 0:01:01]} Rd7 {[%emt 0:00:27]} 29. Re3 {[%emt 0:06:36]} Nc5 {[%emt 0:19:33]} 30. Bxg7 {[%emt 0:00:07]} Kxg7 {[%emt 0:00:02]} 31. Ke2 {[%emt 0:00:09]} e6 {[%emt 0:00:41]} 32. g3 {[%emt 0:04:16]} g5 {[%emt 0:03:36]} 33. Na3 {[%emt 0:00:28]} Rd4 {[%emt 0:00:49]} 34. Nc2 {[%emt 0:00:08]} Rd6 {[%emt 0:02:43]} 35. Na3 {[%emt 0:00:07]} Rd4 {[%emt 0:00:33]} 36. Nc2 {[%emt 0:00:16]} Rd6 {[%emt 0:00:28]} 37. Na3 {[%emt 0:00:13]} Rd4 {[%emt 0:00:35]} 1/2-1/2

[Event "51st Rilton Cup 2023-24"]
[Site "Stockholm"]
[Date "2023.12.29"]
[Round "3.12"]
[White "Shohat, Yotam"]
[Black "Sivuk, Vitaly"]
[Result "0-1"]
[ECO "C67"]
[WhiteElo "2332"]
[BlackElo "2490"]
[Annotator "ChessBase"]
[PlyCount "100"]
[EventDate "2023.12.27"]
[EventType "swiss"]
[EventCountry "SWE"]
[SourceTitle "playchess.com"]
[Source "ChessBase"]
[SourceQuality "1"]
[TimeControl "40/5400+30:1800+30"]

1. e4 {[%emt 0:01:59]} e5 {[%emt 0:02:15]} 2. Nf3 {[%emt 0:00:05]} Nc6 {[%emt 0:00:07]} 3. Bb5 {[%emt 0:00:04]} Nf6 {[%emt 0:00:11]} 4. O-O {[%emt 0:12:12]} Nxe4 {[%emt 0:00:09]} 5. Re1 {[%emt 0:05:49]} Nd6 {[%emt 0:00:10]} 6. Nxe5 {[%emt 0:00:05]} Be7 {[%emt 0:00:08]} 7. Bf1 {[%emt 0:00:06]} Nf5 {[%emt 0:00:16]} 8. c3 {[%emt 0:07:09]} Nxe5 {[%emt 0:01:17]} 9. Rxe5 {[%emt 0:00:07]} d6 {[%emt 0:00:09]} 10. Re1 {[%emt 0:00:06]} O-O {[%emt 0:00:14]} 11. d4 {[%emt 0:00:07]} d5 {[%emt 0:00:08]} 12. Nd2 {[%emt 0:02:25]} Bd6 {[%emt 0:02:26]} 13. Nf3 {[%emt 0:03:02]} Nh4 {[%emt 0:05:17]} 14. Nxh4 {[%emt 0:10:48]} Qxh4 {[%emt 0:00:10]} 15. g3 {[%emt 0:00:03]} Qf6 {[%emt 0:02:18]} 16. Qh5 {[%emt 0:13:42]} Qf5 {[%emt 0:02:10]} 17. Qxf5 {[%emt 0:01:44]} Bxf5 {[%emt 0:00:08]} 18. f3 {[%emt 0:01:20]} h5 {[%emt 0:02:38]} 19. Bd2 {[%emt 0:01:51]} a5 {[%emt 0:04:11]} 20. Kg2 {[%emt 0:03:10]} f6 {[%emt 0:04:47]} 21. h3 {[%emt 0:06:51]} g5 {[%emt 0:01:40]} 22. g4 {[%emt 0:02:10]} Bg6 {[%emt 0:01:33]} 23. gxh5 {[%emt 0:02:35]} Bxh5 {[%emt 0:00:33]} 24. Bd3 {[%emt 0:00:23]} Kg7 {[%emt 0:02:12]} 25. Rh1 {[%emt 0:10:36]} Rh8 {[%emt 0:05:03]} 26. Raf1 {[%emt 0:05:22]} Rae8 {[%emt 0:04:16]} 27. Re1 {[%emt 0:07:50]} Bg6 {[%emt 0:04:21]} 28. Bxg6 {[%emt 0:00:08]} Kxg6 {[%emt 0:00:06]} 29. Rxe8 {[%emt 0:01:56]} Rxe8 {[%emt 0:00:06]} 30. Re1 {[%emt 0:01:00]} Rh8 {[%emt 0:00:18]} 31. a4 {[%emt 0:00:14]} b6 {[%emt 0:00:18]} 32. Re2 {[%emt 0:00:46]} Kf5 {[%emt 0:00:33]} 33. Be1 {[%emt 0:00:14]} c5 {[%emt 0:01:48]} 34. Bf2 {[%emt 0:00:26]} Rb8 {[%emt 0:02:00]} 35. Rd2 {[%emt 0:00:09]} c4 {[%emt 0:00:41]} 36. Re2 {[%emt 0:01:15]} b5 {[%emt 0:02:16]} 37. axb5 {[%emt 0:00:04]} Rxb5 {[%emt 0:00:03]} 38. Be3 {[%emt 0:00:45]} a4 {[%emt 0:01:16]} 39. Kf2 {[%emt 0:00:47]} Bf4 {[%emt 0:01:21]} 40. Rc2 {[%emt 0:00:14]} Rb8 {[%emt 0:00:55]} 41. Bd2 {[%emt 0:27:07]} Bxd2 {[%emt 0:00:39]} 42. Rxd2 {[%emt 0:00:02]} Kf4 {[%emt 0:00:19]} 43. Re2 {[%emt 0:02:22]} Rb3 {[%emt 0:00:21]} 44. Rc2 {[%emt 0:01:00]} a3 {[%emt 0:00:09]} 45. bxa3 {[%emt 0:00:11]} Rxa3 {[%emt 0:00:05]} 46. Ke2 {[%emt 0:00:23]} Kg3 {[%emt 0:00:41]} 47. Rc1 {[%emt 0:00:20]} f5 {[%emt 0:00:26]} 48. Rc2 {[%emt 0:02:33]} f4 {[%emt 0:01:51]} 49. Rb2 {[%emt 0:00:36]} Rxc3 {[%emt 0:00:32]} 50. Rb5 {[%emt 0:00:02]} Re3+ {[%emt 0:00:30]} 0-1